bitfinex/quotes_SOLUSD_20251031
["timestamp","ask_amount","ask_price","bid_price","bid_amount"]
[1761870551217,2.03598731,184.61,184.58,9.78882769]
[1761870551410,2.03598731,184.61,184.58,10.50882769]
[1761870552325,2.03598731,184.6,184.58,15.92633117]
[1761870552834,2.03598731,184.61,184.6,9.78882769]
[1761870553223,2.03598731,184.61,184.58,6.13750348]
[1761870553547,2.03598731,184.62,184.6,9.78882769]
[1761870553740,2.03598731,184.61,184.6,9.78882769]
[1761870556236,0.2,184.63,184.6,6.11711809]
[1761870556553,2.03598731,184.61,184.58,20.592]
[1761870556861,2.03598731,184.61,184.6,30.38082769]
[1761870557733,2.03598731,184.61,184.6,9.78882769]
[1761870557934,2.03598731,184.61,184.6,15.20594578]
[1761870559556,2.03598731,184.61,184.6,76.90594578]
[1761870560166,2.03598731,184.62,184.61,9.78882769]
[1761870560347,2.23598731,184.63,184.61,9.78882769]
[1761870560858,2.03598731,184.62,184.61,71.48882769]
[1761870561863,0.86,184.63,184.61,71.48882769]
[1761870562066,2.03598731,184.62,184.61,71.48882769]
[1761870562440,0.86,184.63,184.61,71.48882769]
[1761870562662,2.03598731,184.62,184.61,71.48882769]
[1761870567270,8.11251856,184.62,184.61,61.7]
[1761870567459,8.11251856,184.62,184.58,9.78882769]
[1761870567460,8.11251856,184.62,184.58,71.48882769]
[1761870567662,2.03598731,184.59,184.58,71.48882769]
[1761870568048,2.69598731,184.59,184.58,71.48882769]
[1761870568740,2.69598731,184.59,184.58,61.7]
[1761870572869,10.83993655,184.59,184.58,61.7]
[1761870573073,16.25734811,184.59,184.58,61.7]
[1761870573761,16.25734811,184.59,184.54,71.48882769]
[1761870574072,2.03598731,184.55,184.54,71.48882769]
[1761870574379,2.03598731,184.55,184.54,61.7]
[1761870574565,2.70598731,184.55,184.54,61.7]
[1761870577895,8.12457305,184.55,184.54,61.7]
[1761870579089,12.15789867,184.55,184.51,61.7]
[1761870579264,3.17899356,184.52,184.5,9.78882769]
[1761870579469,0.67,184.54,184.5,9.78882769]
[1761870579470,3.17899356,184.51,184.5,9.78882769]
[1761870579681,3.84899356,184.51,184.5,71.48882769]
[1761870580589,3.84899356,184.51,184.5,61.7]
[1761870582368,9.268754,184.51,184.5,61.7]
[1761870582778,13.30904236,184.51,184.5,61.7]
[1761870584169,7.88928192,184.51,184.5,61.7]
[1761870584468,7.21928192,184.51,184.5,61.7]
[1761870585297,3.17899356,184.51,184.5,61.7]
[1761870586485,0.67,184.52,184.5,61.7]
[1761870586790,3.17899356,184.53,184.5,76.90888189]
[1761870586960,3.17899356,184.53,184.51,0.72]
[1761870587366,3.17899356,184.53,184.51,6.13955471]
[1761870587783,3.17899356,184.53,184.51,0.72]
[1761870587983,3.17899356,184.52,184.51,9.78882769]
[1761870588167,3.84899356,184.52,184.5,61.7]
[1761870588375,3.17899356,184.51,184.5,61.7]
[1761870589681,3.17899356,184.51,184.5,67.1200542]
[1761870590006,3.17899356,184.51,184.5,61.7]
[1761870590595,0.67,184.51,184.5,61.7]
[1761870590782,3.84899356,184.51,184.5,61.7]
[1761870591174,3.17899356,184.51,184.5,61.7]
[1761870592302,3.84899356,184.51,184.5,61.7]
[1761870595096,3.17899356,184.51,184.5,61.7]
[1761870595902,3.17899356,184.51,184.5,76.90888189]
[1761870597197,3.84899356,184.51,184.5,61.7]
[1761870599201,0.67,184.51,184.5,61.7]
[1761870599394,3.84899356,184.51,184.5,61.7]
[1761870600391,9.268754,184.51,184.5,61.7]
[1761870600582,16.48616636,184.51,184.49,61.7]
[1761870600790,7.07798712,184.5,184.49,61.7]
[1761870600997,3.89899356,184.5,184.49,61.7]
[1761870601301,0.72,184.5,184.49,61.7]
[1761870601473,3.89899356,184.5,184.49,61.7]
[1761870601673,20.592,184.5,184.49,61.7]
[1761870601874,3.17899356,184.5,184.49,61.7]
[1761870602383,3.17899356,184.51,184.49,67.84034798]
[1761870602574,0.72,184.53,184.49,67.84034798]
[1761870602575,0.72,184.6,184.5,13.68782125]
[1761870602912,0.72,184.6,184.51,0.72]
[1761870602913,3.17899356,184.56,184.51,0.72]
[1761870603087,3.17899356,184.57,184.52,9.78882769]
[1761870603487,3.17899356,184.57,184.54,9.78882769]
[1761870603985,3.17899356,184.57,184.55,5.41858574]
[1761870604388,3.89899356,184.58,184.55,5.41858574]
[1761870604585,3.17899356,184.58,184.55,6.13858574]
[1761870604784,3.17899356,184.59,184.55,6.13858574]
[1761870605311,3.89899356,184.58,184.55,5.41858574]
[1761870605481,0.72,184.58,184.55,5.41858574]
[1761870605805,0.72,184.58,184.54,85.03593846]
[1761870605806,3.89899356,184.58,184.54,71.48882769]
[1761870605982,3.17899356,184.55,184.54,61.7]
[1761870606512,4.76158896,184.55,184.54,61.7]
[1761870606718,3.89899356,184.55,184.49,15.20913161]
[1761870607002,3.17899356,184.51,184.49,15.20913161]
[1761870607203,3.17899356,184.51,184.49,76.90913161]
[1761870607579,3.17899356,184.53,184.5,0.72]
[1761870607897,6.13803301,184.57,184.52,5.41946672]
[1761870607898,3.17899356,184.56,184.52,5.41946672]
[1761870608100,26.0097309,184.58,184.52,5.41946672]
[1761870608101,3.17899356,184.58,184.53,9.78882769]
[1761870608318,4.043608,184.57,184.55,9.78882769]
[1761870608602,4.043608,184.57,184.55,71.48882769]
[1761870608809,3.17899356,184.56,184.55,71.48882769]
[1761870609006,3.89899356,184.57,184.55,71.48882769]
[1761870610504,7.94615769,184.56,184.55,61.7]
[1761870611282,7.22615769,184.56,184.55,61.7]
[1761870611499,7.94615769,184.56,184.55,61.7]
[1761870612218,7.94615769,184.56,184.53,67.11910133]
[1761870612419,4.04716413,184.55,184.53,67.11910133]
[1761870612599,3.89899356,184.56,184.53,67.11910133]
[1761870612788,4.05176471,184.55,184.53,67.11910133]
[1761870612990,3.89899356,184.56,184.53,67.11910133]
[1761870613209,7.23075827,184.55,184.53,67.11910133]
[1761870613516,4.05176471,184.54,184.53,76.90792902]
[1761870613722,4.05176471,184.54,184.53,15.20792902]
[1761870614479,4.05176471,184.54,184.51,0.72]
[1761870614480,4.05176471,184.54,184.52,15.20825417]
[1761870614699,3.89899356,184.55,184.52,15.20825417]
[1761870614905,4.05375516,184.54,184.52,15.20825417]
[1761870615212,3.89899356,184.55,184.52,15.20825417]
[1761870615412,4.05393705,184.54,184.52,15.20825417]
[1761870615618,3.89899356,184.55,184.52,15.20825417]
[1761870615821,7.23376242,184.54,184.51,5.4196922]
[1761870615982,4.05476886,184.53,184.51,5.4196922]
[1761870616182,3.17899356,184.54,184.51,5.4196922]
[1761870616407,4.0557853,184.53,184.51,5.4196922]
[1761870616716,3.86899356,184.54,184.51,5.4196922]
[1761870616924,4.05594933,184.53,184.51,67.1196922]
[1761870617102,3.17899356,184.54,184.51,67.8096922]
[1761870617280,4.74601859,184.53,184.51,67.1196922]
[1761870617481,4.05601859,184.52,184.51,77.59851989]
[1761870617719,3.86899356,184.55,184.51,77.59851989]
[1761870618024,4.05730723,184.54,184.51,77.59851989]
[1761870618186,4.05730723,184.53,184.51,77.59851989]
[1761870618385,0.69,184.55,184.51,77.59851989]
[1761870618587,4.05774811,184.54,184.51,77.59851989]
[1761870618886,4.05774811,184.53,184.51,77.59851989]
[1761870619222,3.86899356,184.55,184.51,77.59851989]
[1761870619223,3.17899356,184.54,184.51,77.59851989]
[1761870619522,4.05781278,184.53,184.51,77.59851989]
[1761870619815,4.05781278,184.52,184.51,77.59851989]
[1761870621198,4.0580867,184.52,184.51,77.59851989]
[1761870621490,4.05811504,184.52,184.51,77.59851989]
[1761870622586,3.17899356,184.54,184.51,77.59851989]
[1761870622899,4.05821542,184.53,184.51,77.59851989]
[1761870623108,3.17899356,184.54,184.51,77.59851989]
[1761870623285,4.05821458,184.53,184.51,77.59851989]
[1761870623486,3.17899356,184.54,184.51,77.59851989]
[1761870623683,4.05828977,184.53,184.51,77.59851989]
[1761870623899,3.17899356,184.54,184.51,77.59851989]
[1761870624188,4.05822027,184.53,184.51,76.90851989]
[1761870624520,3.86899356,184.54,184.51,76.90851989]
[1761870624692,4.05817945,184.53,184.51,76.90851989]
[1761870624893,3.86899356,184.54,184.51,76.90851989]
[1761870625217,4.05811037,184.53,184.51,76.90851989]
[1761870625403,0.69,184.53,184.51,76.90851989]
[1761870625600,4.05804968,184.52,184.51,76.90851989]
[1761870625909,0.69,184.53,184.51,76.90851989]
[1761870627115,4.05812397,184.52,184.51,76.90851989]
[1761870628216,3.86899356,184.54,184.51,76.90851989]
[1761870628383,4.74860438,184.53,184.51,76.90851989]
[1761870628588,4.05872891,184.52,184.51,76.90851989]
[1761870628792,0.69,184.53,184.51,76.90851989]
[1761870629008,4.05872891,184.52,184.51,76.90851989]
[1761870632406,3.17899356,184.53,184.51,76.90851989]
[1761870633414,4.059515,184.52,184.51,76.90851989]
[1761870635426,0.69,184.54,184.51,76.90851989]
[1761870635597,4.05972664,184.53,184.51,76.90851989]
[1761870635918,0.69,184.54,184.51,76.90851989]
[1761870636106,4.05976419,184.53,184.51,76.90851989]
[1761870636416,4.05976419,184.52,184.51,71.48882769]
[1761870637206,4.05976419,184.52,184.51,76.90858813]
[1761870640223,4.06091327,184.52,184.51,76.90858813]
[1761870640708,4.06091327,184.52,184.51,61.7]
[1761870640709,13.34937355,184.52,184.51,61.7]
[1761870640908,16.91823752,184.52,184.51,61.7]
[1761870641307,15.77372329,184.52,184.51,61.7]
[1761870645410,15.77299166,184.52,184.51,61.7]
[1761870646309,15.77261103,184.52,184.51,61.7]
[1761870646906,15.77261103,184.52,184.47,71.48882769]
[1761870647112,2.03447933,184.49,184.47,71.48882769]
[1761870647317,4.06078749,184.48,184.47,71.48882769]
[1761870648122,4.75078749,184.48,184.47,61.7]
[1761870649215,4.06078749,184.48,184.47,61.7]
[1761870650010,4.75078749,184.48,184.47,61.7]
[1761870650606,6.78526682,184.48,184.47,61.7]
[1761870657919,6.09526682,184.48,184.47,61.7]
[1761870661134,6.76526682,184.48,184.47,61.7]
[1761870666134,4.06078749,184.48,184.47,61.7]
[1761870666819,4.05378199,184.48,184.47,76.90976334]
[1761870667022,2.70447933,184.5,184.47,76.90976334]
[1761870667226,6.08814039,184.49,184.47,76.90976334]
[1761870667426,2.03447933,184.49,184.47,76.90976334]
[1761870667841,2.70447933,184.53,184.48,12.52330702]
[1761870668129,4.05349975,184.52,184.48,10.48882769]
[1761870668328,6.08801429,184.51,184.48,9.78882769]
[1761870668546,4.05371611,184.5,184.48,9.78882769]
[1761870668720,2.70447933,184.51,184.48,15.90939884]
[1761870668921,4.05371715,184.5,184.48,15.90939884]
[1761870669137,0.67,184.52,184.48,15.90939884]
[1761870669420,6.08813604,184.51,184.48,15.90939884]
[1761870669619,2.03447933,184.51,184.48,15.90939884]
[1761870669949,0.67,184.52,184.48,15.90939884]
[1761870670135,4.05391942,184.51,184.48,15.90939884]
[1761870670458,2.03447933,184.51,184.48,15.90939884]
[1761870670622,2.03447933,184.53,184.49,0.7]
[1761870670823,2.03447933,184.55,184.5,28.75901739]
[1761870671030,4.0537398,184.54,184.51,0.7]
[1761870671226,2.70447933,184.57,184.52,9.78882769]
[1761870671440,4.05324038,184.56,184.55,11.82330702]
[1761870671642,22.15613389,184.68,184.56,9.78882769]
[1761870671948,9.73517724,184.62,184.56,12.52330702]
[1761870672120,4.05219977,184.61,184.57,0.7]
[1761870672320,0.67,184.61,184.57,0.7]
[1761870672738,0.67,184.61,184.59,9.78882769]
[1761870673935,2.03447933,184.6,184.56,9.78882769]
[1761870674249,2.70447933,184.61,184.56,10.48882769]
[1761870674451,4.71601676,184.6,184.56,10.48882769]
[1761870675153,4.71601676,184.6,184.57,5.41799859]
[1761870676234,4.74601676,184.6,184.57,5.41799859]
[1761870677345,0.7,184.6,184.57,5.41799859]
[1761870677574,2.73447933,184.62,184.57,5.41799859]
[1761870677730,2.73447933,184.62,184.55,13.54646437]
[1761870677731,2.03447933,184.59,184.55,6.09848015]
[1761870677928,0.2,184.63,184.55,6.09848015]
[1761870677929,2.73447933,184.61,184.56,10.46882769]
[1761870678340,0.2,184.63,184.58,9.78882769]
[1761870678544,2.03447933,184.62,184.58,71.48882769]
[1761870678928,0.9,184.63,184.59,0.68]
[1761870678929,0.2,184.63,184.59,0.68]
[1761870679129,0.2,184.63,184.6,9.78882769]
[1761870679352,0.2,184.63,184.6,73.52330702]
[1761870679559,0.2,184.63,184.62,15.20535894]
[1761870679736,0.2,184.63,184.62,76.90535894]
[1761870679939,0.2,184.63,184.62,77.58535894]
[1761870680342,0.2,184.63,184.62,79.61983827]
[1761870681557,0.2,184.63,184.62,77.58535894]
[1761870681954,2.03447933,184.69,184.64,9.78882769]
[1761870682173,0.2,184.7,184.64,11.82330702]
[1761870682455,0.9,184.7,184.66,9.78882769]
[1761870682661,0.2,184.7,184.66,71.28882769]
[1761870682834,0.2,184.7,184.68,9.78882769]
[1761870683577,0.2,184.7,184.68,10.46882769]
[1761870683735,0.2,184.7,184.68,71.96882769]
[1761870683932,0.2,184.7,184.68,76.70336638]
[1761870684327,0.2,184.7,184.68,77.38336638]
[1761870684567,0.2,184.7,184.68,76.70336638]
[1761870684741,0.2,184.7,184.68,77.38336638]
[1761870685538,0.2,184.7,184.69,0.68]
[1761870685746,0.2,184.7,184.69,10.46882769]
[1761870685945,0.2,184.7,184.69,15.883306]
[1761870686444,0.2,184.7,184.69,17.91778533]
[1761870687869,0.2,184.7,184.69,15.883306]
[1761870688233,0.2,184.7,184.69,15.203306]
[1761870688456,2.93447933,184.71,184.7,71.08882769]
[1761870689039,0.9,184.71,184.7,71.08882769]
[1761870689265,0.2,184.71,184.7,71.08882769]
[1761870689653,0.87,184.71,184.7,71.08882769]
[1761870689879,0.2,184.71,184.7,71.08882769]
[1761870691047,2.90447933,184.71,184.7,61.3]
[1761870692265,0.87,184.71,184.7,61.3]
[1761870692465,2.23447933,184.71,184.7,61.3]
[1761870692672,0.2,184.71,184.7,61.3]
[1761870692977,0.2,184.71,184.7,77.21301285]
[1761870694775,0.2,184.71,184.7,99.83949218]
[1761870696250,1e-08,184.71,184.7,99.83949218]
[1761870697073,0.2,184.74,184.7,99.83949218]
[1761870697074,0.2,184.74,184.73,9.78882769]
[1761870697254,0.2,184.74,184.73,73.4646376]
[1761870697449,0.2,184.74,184.73,74.1746376]
[1761870698349,0.2,184.74,184.73,79.5879435]
[1761870699467,0.2,184.74,184.73,70.88882768]
[1761870700089,0.2,184.74,184.73,76.30213358]
[1761870700567,8.31749221,184.74,184.67,6.89098999]
[1761870700772,2.03447933,184.69,184.67,6.89098999]
[1761870701071,0.67,184.73,184.68,12.53330702]
[1761870701273,0.67,184.73,184.68,10.49882769]
[1761870701476,2.70447933,184.73,184.68,10.49882769]
[1761870701769,0.67,184.73,184.68,12.53330702]
[1761870701969,2.70447933,184.73,184.68,10.49882769]
[1761870702148,2.70447933,184.73,184.7,9.78882769]
[1761870702342,2.03447933,184.72,184.68,5.41453513]
[1761870702566,2.03447933,184.71,184.69,9.78882769]
[1761870702768,2.70447933,184.71,184.69,9.78882769]
[1761870703452,3.84185029,184.71,184.69,9.78882769]
[1761870703655,3.17185029,184.71,184.69,9.78882769]
[1761870704266,3.84185029,184.72,184.68,15.20336282]
[1761870704473,0.2,184.74,184.69,29.44922294]
[1761870704474,3.37185029,184.74,184.69,29.44922294]
[1761870704979,3.37185029,184.74,184.7,0.71]
[1761870705272,4.04185029,184.74,184.69,29.44922294]
[1761870705870,3.17185029,184.73,184.69,29.44922294]
[1761870706049,3.17185029,184.73,184.69,90.54922293]
[1761870706882,0.2,184.74,184.7,3.88185029]
[1761870707052,0.2,184.74,184.7,0.71]
[1761870707370,0.2,184.74,184.72,9.78882769]
[1761870707553,0.2,184.74,184.69,80.05039524]
[1761870707554,3.17185029,184.73,184.7,9.78882769]
[1761870707758,3.17185029,184.72,184.7,9.78882769]
[1761870708074,0.87,184.74,184.7,9.78882769]
[1761870708075,3.17185029,184.71,184.7,9.78882769]
[1761870708469,0.67,184.73,184.7,9.78882769]
[1761870708779,3.17185029,184.71,184.7,9.78882769]
[1761870709173,3.17185029,184.71,184.7,15.20301285]
[1761870709357,3.84185029,184.71,184.7,15.20301285]
[1761870709562,3.84185029,184.71,184.7,9.78882769]
[1761870709773,3.17185029,184.71,184.7,15.20301285]
[1761870710092,3.17185029,184.73,184.7,15.20301285]
[1761870710574,3.84185029,184.73,184.7,15.20301285]
[1761870710889,3.17185029,184.72,184.7,9.78882769]
[1761870711055,3.84185029,184.72,184.7,9.78882769]
[1761870711258,5.61301905,184.74,184.72,9.78882769]
[1761870711259,0.2,184.74,184.72,9.78882769]
[1761870711476,7.11082628,184.74,184.71,9.78882769]
[1761870711664,3.37185029,184.74,184.71,10.49882769]
[1761870711992,3.37185029,184.74,184.71,71.59882768]
[1761870712170,0.2,184.74,184.71,71.59882768]
[1761870712364,0.2,184.74,184.72,0.71]
[1761870712570,0.2,184.74,184.73,9.78882769]
[1761870713077,0.2,184.74,184.73,10.49882769]
[1761870713283,0.2,184.74,184.73,15.20213359]
[1761870715982,0.2,184.74,184.73,15.91213359]
[1761870717777,3.84185029,184.77,184.75,15.20154758]
[1761870717976,7.78223376,184.76,184.75,76.10154757]
[1761870720163,7.78473629,184.76,184.75,76.10154757]
[1761870720571,7.78473629,184.76,184.75,76.78154757]
[1761870720771,0.9,184.82,184.75,94.02646956]
[1761870720984,7.78991441,184.81,184.78,9.78882769]
[1761870721188,7.78991441,184.8,184.77,9.78882769]
[1761870721468,7.78991441,184.79,184.78,5.4118411]
[1761870721790,7.78991441,184.79,184.78,18.37251908]
[1761870721978,7.78991441,184.79,184.78,15.20066879]
[1761870722163,4.03392697,184.79,184.78,18.37251908]
[1761870722567,4.03392697,184.79,184.78,15.20066879]
[1761870725496,0.7,184.81,184.79,9.78882769]
[1761870725795,4.04171167,184.8,184.79,70.68882768]
[1761870727591,4.04171167,184.8,184.79,76.10037592]
[1761870728580,4.0430168,184.8,184.79,76.10037592]
[1761870730078,0.9,184.82,184.79,79.27222621]
[1761870730278,0.2,184.82,184.79,79.27222621]
[1761870730617,0.2,184.82,184.8,0.68]
[1761870730976,0.2,184.82,184.79,92.80109681]
[1761870731291,0.2,184.82,184.79,93.48109681]
[1761870731496,0.9,184.82,184.79,92.80109681]
[1761870731698,0.9,184.82,184.79,79.27222621]
[1761870732199,0.2,184.82,184.79,79.27222621]
[1761870732398,0.2,184.82,184.79,79.95222621]
[1761870732982,0.2,184.82,184.81,3.17185029]
[1761870733909,0.2,184.82,184.81,9.2628129]
[1761870734410,0.2,184.82,184.81,8.5828129]
[1761870734712,0.2,184.82,184.81,9.2628129]
[1761870734912,7.66813084,184.88,184.84,9.78882769]
[1761870735109,4.03853537,184.87,184.86,3.17185029]
[1761870735304,0.2,184.9,184.87,9.78882769]
[1761870735496,0.2,184.9,184.89,12.96067798]
[1761870735824,0.2,184.9,184.89,18.36929932]
[1761870736320,0.2,184.9,184.89,19.07929932]
[1761870737417,0.88,184.9,184.89,15.19744903]
[1761870737636,0.2,184.9,184.89,15.19744903]
[1761870737794,0.2,184.9,184.89,18.36929932]
[1761870740204,0.2,184.9,184.89,19.07929932]
[1761870740409,0.2,184.9,184.89,18.36929932]
[1761870741009,0.2,184.9,184.89,79.06929931]
[1761870741902,0.2,184.9,184.89,75.89744902]
[1761870742106,0.2,184.9,184.89,79.06929931]
[1761870742315,0.2,184.9,184.89,79.77929931]
[1761870743311,0.88,184.9,184.89,79.06929931]
[1761870743837,0.88,184.9,184.89,60.69999999]
[1761870744199,4.05185029,184.9,184.89,60.69999999]
[1761870744634,4.05185029,184.9,184.86,15.19832677]
[1761870744799,0.68,184.89,184.86,15.19832677]
[1761870746336,3.17185029,184.88,184.85,60.69999999]
[1761870746501,3.17185029,184.88,184.85,5.40973388]
[1761870746706,0.68,184.87,184.85,5.40973388]
[1761870746916,3.37185029,184.9,184.86,9.78882769]
[1761870747130,0.2,184.9,184.88,9.78882769]
[1761870747500,0.2,184.9,184.89,12.96067798]
[1761870748198,0.2,184.9,184.89,18.36929932]
[1761870752524,0.2,184.9,184.89,79.06929931]
[1761870755232,0.88,184.9,184.89,70.48882768]
[1761870755410,0.2,184.9,184.89,70.48882768]
[1761870755605,0.2,184.9,184.89,75.89744902]
[1761870755825,0.2,184.9,184.89,79.06929931]
[1761870756629,0.2,184.9,184.89,18.36929932]
[1761870756831,0.2,184.9,184.89,19.07929932]
[1761870757030,0.2,184.9,184.89,79.77929931]
[1761870763425,0.2,184.9,184.89,78.63179162]
[1761870765153,1e-08,184.9,184.89,78.63179162]
[1761870765931,1e-08,184.9,184.89,79.17265375]
[1761870781454,0.67000001,184.9,184.89,70.48882768]
[1761870781953,2.69434261,184.9,184.89,60.69999999]
[1761870782160,0.67000001,184.9,184.89,59.97999999]
[1761870782449,2.69434261,184.9,184.86,69.76882768]
[1761870782674,2.0243426,184.89,184.86,69.76882768]
[1761870782853,2.6943426,184.89,184.86,69.76882768]
[1761870783153,0.67,184.88,184.86,75.17830563]
[1761870784046,2.0243426,184.87,184.86,59.97999999]
[1761870784249,2.6943426,184.88,184.86,59.97999999]
[1761870784444,0.67,184.87,184.86,59.97999999]
[1761870784944,0.67,184.87,184.83,69.76882768]
[1761870786033,0.67,184.87,184.85,9.78882769]
[1761870786962,2.0243426,184.86,184.84,9.78882769]
[1761870787367,0.67,184.85,184.84,9.78882769]
[1761870787674,0.67,184.86,184.84,9.78882769]
[1761870787982,2.0243426,184.88,184.85,5.40979172]
[1761870788673,0.67,184.87,184.85,5.40979172]
[1761870791160,0.67000001,184.9,184.86,9.78882769]
[1761870792262,2.69434261,184.9,184.86,9.78882769]
[1761870792634,2.69434261,184.9,184.85,78.91427101]
[1761870792635,2.0243426,184.88,184.85,65.38979171]
[1761870792835,0.67,184.87,184.85,65.38979171]
[1761870793349,0.67,184.88,184.86,9.78882769]
[1761870795453,2.6943426,184.88,184.85,59.97999999]
[1761870795670,0.67,184.87,184.85,59.97999999]
[1761870796579,0.67,184.87,184.85,65.38976924]
[1761870802089,5.40833989,184.9,184.86,9.78882769]
[1761870802090,0.67,184.88,184.86,9.78882769]
[1761870802775,0.67,184.88,184.86,69.76882768]
[1761870804076,0.67,184.88,184.86,75.17827665]
[1761870806458,0.67000001,184.9,184.86,75.17827665]
[1761870806657,0.67,184.89,184.86,77.87261925]
[1761870807578,1e-08,184.9,184.86,89.37202435]
[1761870807777,0.67000001,184.9,184.88,5.40891389]
[1761870807983,2.69434261,184.9,184.87,5.40915363]
[1761870808165,2.0243426,184.88,184.82,9.78882769]
[1761870808361,2.6943426,184.87,184.82,9.78882769]
[1761870808764,0.67,184.86,184.82,9.78882769]
[1761870808982,2.6943426,184.86,184.82,9.78882769]
[1761870809191,2.6943426,184.86,184.81,5.41096261]
[1761870809381,2.6943426,184.85,184.82,9.78882769]
[1761870809765,0.67,184.84,184.81,5.41096261]
[1761870809966,6.06323144,184.83,184.79,5.41136657]
[1761870810173,2.0243426,184.83,184.79,5.41136657]
[1761870810390,0.67,184.82,184.79,5.41136657]
[1761870811180,0.67,184.82,184.78,28.73027156]
[1761870811384,0.67,184.82,184.78,29.40027156]
[1761870813183,0.67,184.82,184.78,9.78882769]
[1761870813382,2.0243426,184.8,184.75,9.78882769]
[1761870813696,2.0243426,184.8,184.75,10.45882769]
[1761870813901,0.67,184.79,184.75,9.78882769]
[1761870814105,0.67,184.79,184.77,9.78882769]
[1761870814403,0.67,184.79,184.77,15.20080307]
[1761870814793,2.0243426,184.8,184.77,15.20080307]
[1761870815103,20.592,184.85,184.77,15.20080307]
[1761870815104,23.2863426,184.85,184.8,9.78882769]
[1761870815275,2.6943426,184.85,184.8,9.78882769]
[1761870815480,2.6943426,184.85,184.81,0.67]
[1761870815690,0.67,184.84,184.81,0.67]
[1761870816293,0.67,184.84,184.82,5.41066984]
[1761870817195,2.0243426,184.86,184.82,5.41066984]
[1761870817402,0.67,184.85,184.82,5.41066984]
[1761870818785,2.0243426,184.86,184.82,6.08066984]
[1761870819087,0.67,184.85,184.82,6.08066984]
[1761870820074,0.67,184.85,184.81,5.41096261]
[1761870820277,0.67,184.85,184.81,65.3909626]
[1761870820479,0.67,184.87,184.82,0.67]
[1761870820779,6.72916901,184.87,184.82,0.67]
[1761870820978,2.6943426,184.87,184.82,60.64999999]
[1761870821179,2.6943426,184.86,184.82,59.97999999]
[1761870821607,0.67,184.85,184.82,59.97999999]
[1761870821907,2.0243426,184.83,184.8,59.97999999]
[1761870822105,25.29831822,184.85,184.8,59.97999999]
[1761870822106,2.0243426,184.82,184.8,59.97999999]
[1761870822404,2.6943426,184.81,184.77,15.20068749]
[1761870822793,0.67,184.8,184.77,15.20068749]
[1761870824094,0.67,184.8,184.77,15.87068749]
[1761870825211,0.67,184.8,184.77,15.20068749]
[1761870826199,0.67,184.8,184.77,15.87068749]
[1761870827516,3.83857967,184.86,184.79,12.95740736]
[1761870827700,4.04079394,184.85,184.81,9.78882769]
[1761870827900,4.04079394,184.84,184.81,9.78882769]
[1761870828093,4.04079394,184.84,184.81,10.45882769]
[1761870828414,4.04079394,184.84,184.82,0.67]
[1761870828587,0.67,184.85,184.83,5.4103771]
[1761870828902,0.67,184.85,184.83,65.39037709]
[1761870831909,3.83857967,184.85,184.83,59.97999999]
[1761870832415,3.83857967,184.85,184.83,65.39036142]
[1761870833111,7.87894061,184.84,184.83,59.97999999]
[1761870833313,7.87894061,184.84,184.78,59.97999999]
[1761870833505,3.16857967,184.82,184.79,5.41151668]
[1761870833700,3.83857967,184.82,184.79,5.41151668]
[1761870834208,3.16857967,184.86,184.8,0.67]
[1761870834209,3.16857967,184.83,184.8,0.67]
[1761870834415,3.16857967,184.83,184.79,5.41151668]
[1761870834624,3.83857967,184.82,184.79,5.41151668]
[1761870836499,3.83857967,184.82,184.79,6.08151668]
[1761870837607,0.67,184.82,184.79,6.08151668]
[1761870837792,0.67,184.82,184.79,66.06151667]
[1761870840306,3.16857967,184.83,184.79,66.06151667]
[1761870840510,3.82857967,184.83,184.8,0.71]
[1761870840708,13.52221272,184.89,184.8,0.71]
[1761870840709,3.16857967,184.84,184.8,0.71]
[1761870841025,7.20982936,184.83,184.8,59.97999999]
[1761870841228,3.16857967,184.82,184.8,59.97999999]
[1761870841822,3.82857967,184.82,184.8,59.97999999]
[1761870841999,0.66,184.81,184.8,59.97999999]
[1761870842519,7.87063716,184.81,184.79,59.97999999]
[1761870842701,3.16857967,184.8,184.75,59.97999999]
[1761870842908,3.16857967,184.77,184.75,59.97999999]
[1761870843293,0.66,184.76,184.75,59.97999999]
[1761870843495,3.82857967,184.76,184.73,59.97999999]
[1761870843707,3.82857967,184.76,184.7,0.1]
[1761870843708,4.04248428,184.75,184.7,0.1]
[1761870843892,0.66,184.75,184.7,0.1]